bitfinex/quotes_ETHUSD_20220118
["timestamp","ask_amount","ask_price","bid_price","bid_amount"]
[1642499091020,0.00113685,3166.2,3166.1,0.755]
[1642499091620,0.12743685,3166.2,3166.1,0.3]
[1642499092119,0.12743685,3166.2,3165.8,3.42561456]
[1642499092320,0.1263,3166.1,3165.8,3.42561456]
[1642499092524,0.1263,3166.1,3165.8,3.29931456]
[1642499092720,0.1263,3166.1,3165.8,0.60113685]
[1642499093121,0.1263,3166.1,3165.8,0.30113685]
[1642499093575,0.00113685,3166.2,3165.8,0.30113685]
[1642499094769,0.00113685,3166.2,3166.1,1.0]
[1642499095172,0.00113685,3166.2,3166.1,1.6]
[1642499095969,0.00113685,3166.2,3166.1,0.6]
[1642499096168,0.00113685,3166.2,3166.1,0.3]
[1642499097070,0.00113685,3166.2,3166.1,0.755]
[1642499098319,0.00113685,3166.2,3165.9,1.0]
[1642499099020,0.00113685,3166.2,3165.7,0.10755881]
[1642499099221,0.00113685,3166.2,3165.8,0.1263]
[1642499099421,0.00170527,3166.1,3165.8,0.1263]
[1642499099823,0.00113685,3166.0,3165.8,0.1263]
[1642499100228,0.00454739,3166.6,3166.1,1.41576573]
[1642499100428,0.00454739,3166.6,3166.2,0.0231244]
[1642499100625,0.00397897,3166.5,3166.2,0.0231244]
[1642499100830,1.24186194,3166.7,3166.1,2.01576573]
[1642499100831,1.19584091,3166.7,3166.1,3.01576573]
[1642499101073,0.1263,3166.6,3166.3,0.00113685]
[1642499101273,1.19584091,3166.7,3166.3,0.00113685]
[1642499101676,2.78513951,3166.7,3166.3,0.00113685]
[1642499102280,1.5892986,3166.7,3166.3,1.00113685]
[1642499102480,1.5892986,3166.7,3166.3,1.30113685]
[1642499102678,0.1263,3166.9,3166.3,0.30113685]
[1642499102882,3.35973429,3167.2,3166.3,0.30113685]
[1642499102883,0.1263,3167.1,3166.3,0.30113685]
[1642499103078,0.00170527,3166.8,3166.3,0.00113685]
[1642499103482,1.21765117,3166.6,3166.3,0.00113685]
[1642499105016,0.00284211,3167.0,3166.3,0.00113685]
[1642499105216,0.1263,3166.9,3166.3,0.00113685]
[1642499105422,0.12857369,3166.9,3166.3,0.00113685]
[1642499105622,0.00227369,3166.9,3166.3,0.00113685]
[1642499106322,1.30479845,3166.7,3166.3,0.00113685]
[1642499107522,1.24725322,3166.2,3166.1,0.0022737]
[1642499107727,1.24725322,3166.2,3165.9,0.00341054]
[1642499108123,0.1263,3166.8,3165.9,1.00341054]
[1642499108570,0.00113684,3166.7,3166.0,0.00284212]
[1642499108774,0.00113684,3166.7,3166.3,1.39362301]
[1642499109171,0.00113684,3166.7,3166.3,1.99362301]
[1642499109573,0.70512022,3166.5,3166.3,2.78292301]
[1642499109773,0.70512022,3166.5,3166.4,0.1263]
[1642499109972,0.70512022,3166.5,3166.4,1.1263]
[1642499110974,0.70512022,3166.5,3166.4,0.5813]
[1642499111175,0.70512022,3166.5,3166.4,1.455]
[1642499111377,0.70512022,3166.5,3166.4,0.455]
[1642499111575,0.70512022,3166.5,3166.4,1.455]
[1642499111976,0.70512022,3166.5,3166.4,2.455]
[1642499112925,0.70512022,3166.5,3166.4,1.455]
[1642499114225,0.70512022,3166.5,3166.4,1.755]
[1642499114427,0.70512022,3166.5,3166.4,3.22054707]
[1642499115231,0.00113684,3166.7,3166.4,5.51008196]
[1642499115429,0.00113684,3166.7,3166.5,0.78915]
[1642499115735,0.00113684,3166.7,3166.6,3.68861042]
[1642499115931,1.5892986,3167.1,3166.7,4.83684714]
[1642499116175,1.5892986,3167.1,3166.8,18.925]
[1642499116374,1.5892986,3167.1,3167.0,0.0377107]
[1642499116574,1.5892986,3167.1,3167.0,0.9143]
[1642499116775,1.5915723,3167.1,3167.0,5.31915071]
[1642499116976,0.0022737,3167.1,3167.0,5.61915071]
[1642499117175,0.0022737,3167.1,3167.0,6.61915071]
[1642499117576,1.5892986,3167.5,3167.1,0.7891]
[1642499117778,1.5892986,3167.5,3167.2,0.455]
[1642499117978,0.00170527,3167.4,3167.2,0.755]
[1642499118381,1.5892986,3167.5,3167.2,0.755]
[1642499118382,0.00113685,3167.3,3167.2,0.755]
[1642499118782,0.00113685,3167.3,3167.2,1.755]
[1642499118984,0.00113685,3167.3,3167.2,1.79445105]
[1642499119183,0.00113685,3167.3,3167.2,2.79445105]
[1642499119832,1.5892986,3167.6,3167.3,0.78783315]
[1642499120036,1.8898363,3170.6,3167.4,1.24396]
[1642499120037,1.5892986,3167.7,3167.4,1.24396]
[1642499120338,1.5892986,3167.7,3167.6,1.32558551]
[1642499120538,1.5892986,3168.0,3167.6,0.3]
[1642499120743,1.5892986,3168.0,3167.6,8.94797633]
[1642499120744,0.00227369,3167.7,3167.6,8.94797633]
[1642499120946,0.63547162,3168.0,3167.7,0.3]
[1642499121140,0.63547162,3168.0,3167.8,0.7075]
[1642499121340,0.00113685,3167.9,3167.8,0.455]
[1642499121938,0.00113685,3167.9,3167.6,1.0]
[1642499122138,0.1262,3167.8,3167.6,1.0]
[1642499122938,0.1262,3167.8,3167.2,0.1262]
[1642499123138,0.0762,3167.8,3167.0,3.31119644]
[1642499123339,0.0762,3167.8,3167.3,0.00227369]
[1642499123586,0.0762,3167.8,3167.1,0.00341054]
[1642499123774,0.0762,3167.8,3167.0,0.00397897]
[1642499123974,0.0762,3167.8,3167.3,2.69690432]
[1642499124173,0.78939,3167.7,3167.0,0.00397897]
[1642499124375,0.78939,3167.7,3167.4,0.00170527]
[1642499124376,3.2262,3167.6,3167.4,0.00170527]
[1642499124575,3.2262,3167.6,3166.4,0.00738951]
[1642499124773,0.1262,3167.6,3166.4,0.00738951]
[1642499124974,0.01375765,3167.9,3166.4,0.00738951]
[1642499124975,0.1263,3167.8,3166.4,0.00738951]
[1642499125174,0.1263,3167.8,3166.5,0.1262]
[1642499125375,3.23814435,3167.7,3166.5,0.1262]
[1642499125577,0.1262,3167.6,3166.6,0.00625266]
[1642499125777,1.33492459,3166.7,3166.6,0.00625266]
[1642499126180,1.33492459,3166.7,3166.4,0.00738951]
[1642499126576,1.33492459,3166.7,3166.4,0.30738951]
[1642499126978,1.33492459,3166.7,3166.5,0.00682108]
[1642499127425,1.33492459,3166.7,3166.2,0.00852635]
[1642499128027,0.1263,3166.6,3166.2,0.00852635]
[1642499128235,0.1263,3166.6,3165.8,0.01080005]
[1642499128426,0.1263,3166.6,3165.7,0.01136847]
[1642499128626,1.21197841,3166.5,3165.7,0.01136847]
[1642499128831,0.1263,3166.4,3165.7,0.01136847]
[1642499129229,1.0,3166.6,3165.7,0.01136847]
[1642499129230,0.1263,3166.5,3165.7,0.01136847]
[1642499129528,0.1263,3166.5,3165.4,0.01307374]
[1642499129727,0.1263,3166.6,3165.4,0.01307374]
[1642499130129,2.80246415,3166.5,3165.4,0.01307374]
[1642499130329,0.1263,3166.4,3165.4,0.01307374]
[1642499131577,0.1263,3166.5,3165.4,0.01307374]
[1642499132375,0.1263,3166.5,3165.4,0.00584455]
[1642499132775,0.1263,3166.5,3165.4,0.13214455]
[1642499132978,0.1263,3166.5,3165.4,1.13214455]
[1642499133182,1.61877007,3166.6,3165.5,0.00527613]
[1642499133379,1.49160355,3165.7,3165.6,0.1263]
[1642499133579,1.49160355,3165.7,3165.5,0.13157613]
[1642499133782,1.49160355,3165.7,3165.6,0.0047077]
[1642499133984,1.49160355,3165.7,3165.6,0.1310077]
[1642499135023,1.49160355,3165.7,3165.6,0.0047077]
[1642499135526,1.49160355,3165.7,3165.6,0.3047077]
[1642499136327,3.9636,3166.6,3165.6,1.50526479]
[1642499136630,4.4487,3166.7,3165.7,0.0215854]
[1642499136631,3.0771,3166.7,3165.7,0.0215854]
[1642499136827,3.0771,3166.7,3165.7,0.00413928]
[1642499137031,0.00097653,3166.6,3165.8,0.00357086]
[1642499137227,0.00097653,3166.6,3165.7,0.00413928]
[1642499137427,0.00097653,3166.6,3165.7,1.00413928]
[1642499137627,0.00097653,3166.6,3165.7,0.00413928]
[1642499137628,1.47075349,3166.5,3165.7,0.00413928]
[1642499137828,1.47075349,3166.5,3165.6,2.13604217]
[1642499137829,1.47075349,3166.5,3165.8,0.00357086]
[1642499138026,0.1263,3166.4,3165.7,0.00413928]
[1642499138690,1.05575022,3166.1,3165.7,0.00413928]
[1642499138884,0.1263,3166.0,3165.7,0.00413928]
[1642499139784,1.32752194,3165.9,3165.7,0.00413928]
[1642499139982,5.2763,3165.8,3165.7,0.00413928]
[1642499140183,5.2763,3165.8,3165.4,0.00584455]
[1642499140385,5.2763,3165.8,3165.3,0.1263]
[1642499140386,0.00951175,3165.7,3165.5,0.00527613]
[1642499140585,1.32752194,3165.9,3165.4,0.00584455]
[1642499140586,5.0763,3165.6,3165.4,0.00584455]
[1642499140784,5.63922881,3165.5,3165.4,0.00584455]
[1642499140983,5.76552881,3165.5,3165.4,0.00584455]
[1642499141389,5.3,3165.4,3164.8,7.42]
[1642499141587,4.08394349,3165.3,3164.7,1.53604217]
[1642499141788,4.08394349,3165.3,3164.9,0.00284212]
[1642499142084,0.1263,3165.3,3164.9,0.00284212]
[1642499142326,1.12160746,3165.2,3164.9,0.00284212]
[1642499142526,6.25414183,3165.0,3164.9,0.00284212]
[1642499142728,6.38044183,3165.0,3164.9,0.00284212]
[1642499142927,7.38044183,3165.0,3164.9,0.00284212]
[1642499143126,7.38044183,3165.0,3164.1,1.53604217]
[1642499143127,5.11642,3165.0,3164.2,0.00682108]
[1642499143328,0.1263,3164.9,3164.2,0.00682108]
[1642499143525,1.1263,3164.9,3164.2,0.00682108]
[1642499143725,0.1263,3164.9,3164.2,0.00682108]
[1642499144332,1.61877007,3165.0,3164.0,1.70569438]
[1642499144527,1.61877007,3165.0,3164.1,0.13378951]
[1642499144726,1.61877007,3165.0,3164.1,3.23379934]
[1642499144926,0.56610958,3164.8,3164.3,2.02184582]
[1642499145129,0.56610958,3164.8,3164.4,3.20504264]
[1642499145331,0.56610958,3164.8,3164.5,0.3]
[1642499145528,0.56610958,3164.8,3164.6,0.1263]
[1642499145729,0.56610958,3164.8,3164.6,4.57826421]
[1642499145929,0.56610958,3165.1,3164.7,2.50397896]
[1642499146175,1.24709807,3165.0,3164.8,0.04021293]
[1642499146375,1.24709807,3165.0,3164.8,0.00341054]
[1642499147377,1.24709807,3165.0,3164.9,2.02184582]
[1642499147677,1.24709807,3165.0,3164.9,2.62184582]
[1642499148280,1.24709807,3165.0,3164.9,0.6]
[1642499148483,1.53775252,3165.0,3164.8,2.02525636]
[1642499148681,1.53775252,3165.0,3164.8,2.32525636]
[1642499148883,1.53775252,3165.0,3164.8,2.62525636]
[1642499149489,1.24709807,3165.0,3164.8,0.60341054]
[1642499149682,1.24709807,3165.0,3164.8,0.30341054]
[1642499149923,1.24709807,3165.0,3164.8,0.00341054]
[1642499150225,1.24709807,3165.0,3164.9,2.02184582]
[1642499151426,1.24709807,3165.0,3164.8,0.00341054]
[1642499151427,1.24709807,3165.0,3164.8,2.02525636]
[1642499153029,1.24709807,3165.0,3164.8,0.00341054]
[1642499153429,1.24709807,3165.0,3164.5,0.00511581]
[1642499154878,1.54709807,3165.0,3164.5,0.00511581]
[1642499155481,1.54709807,3165.0,3164.6,2.02184582]
[1642499155680,1.24709807,3165.0,3164.6,2.02184582]
[1642499155880,1.24709807,3165.0,3164.7,0.00397896]
[1642499156682,1.24709807,3165.0,3164.5,0.00511581]
[1642499157328,1.24709807,3165.0,3164.8,2.02184582]
[1642499158123,1.24709807,3165.0,3164.5,2.02696163]
[1642499158526,1.24709807,3165.0,3164.6,0.00454739]
[1642499159931,1.24709807,3165.0,3164.7,2.02184582]
[1642499160429,1.24709807,3165.0,3164.8,0.00341054]
[1642499161373,1.24709807,3165.0,3164.6,0.00454739]
[1642499161975,0.1263,3164.9,3164.6,0.00454739]
[1642499163372,0.1263,3164.9,3164.7,2.02184582]
[1642499163575,1.54709807,3165.0,3164.7,2.02184582]
[1642499163576,1.67339807,3165.0,3164.7,2.02184582]
[1642499163776,1.67339807,3165.0,3164.8,0.00341054]
[1642499163977,1.37339807,3165.0,3164.8,0.00341054]
[1642499164818,34.25339807,3165.0,3164.8,0.00341054]
[1642499165018,34.12709807,3165.0,3164.8,0.00341054]
[1642499165618,34.12709807,3165.0,3164.3,0.00625266]
[1642499166020,34.42709807,3165.0,3164.3,0.00625266]
[1642499166624,0.42557601,3164.9,3164.3,3.56414065]
[1642499166822,1.10792312,3164.7,3164.3,3.56414065]
[1642499167021,4.3,3164.6,3164.1,2.30406326]
[1642499167221,0.01808142,3164.5,3164.1,2.30406326]
[1642499167420,0.01808142,3164.5,3164.2,0.00113684]
[1642499167421,0.1264,3164.4,3164.2,0.00113684]
[1642499167826,0.3,3164.4,3164.2,0.00113684]
[1642499168021,0.1264,3164.3,3164.2,0.00113684]
[1642499168222,1.14076048,3164.3,3164.1,0.00170527]
[1642499168582,1.56716048,3164.3,3164.1,0.00170527]
[1642499168775,1.44076048,3164.3,3164.1,0.00170527]
[1642499170577,1.44076048,3164.3,3163.5,0.00511581]
[1642499170781,1.14076048,3164.3,3163.5,0.00511581]
[1642499171577,1.14076048,3164.3,3163.5,2.30917907]
[1642499171978,1.14076048,3164.3,3163.6,0.00454738]
[1642499172826,1.44076048,3164.3,3163.6,0.00454738]
[1642499173026,0.1264,3164.2,3163.6,0.00454738]
[1642499173222,0.01140797,3164.1,3163.5,0.00511581]
[1642499173425,0.02019401,3163.9,3163.4,0.00568423]
[1642499173622,0.1264,3164.0,3163.4,0.00568423]
[1642499173623,1.24354677,3163.8,3163.4,0.00568423]
[1642499173925,1.54354677,3163.8,3163.4,0.00568423]
[1642499174524,1.54354677,3163.8,3163.2,0.00682108]
[1642499175123,1.52144279,3163.3,3163.2,0.00682108]
[1642499175530,4.9869,3164.3,3163.2,0.00682108]
[1642499175726,3.8204,3164.3,3163.2,3.15707226]
[1642499175925,4.1204,3164.3,3163.2,0.30682108]
[1642499176173,4.1204,3164.3,3163.3,0.00625265]
[1642499176373,1.0,3164.2,3163.3,0.00625265]
[1642499176578,1.31936371,3163.3,3163.1,0.0073895]
[1642499176773,4.7677,3164.2,3163.3,1.54092918]
[1642499176974,4.1204,3164.3,3163.3,1.54092918]
[1642499177173,4.1204,3164.3,3163.4,0.00568423]
[1642499177576,0.4264,3164.3,3163.4,0.00568423]
[1642499177777,1.42383466,3164.2,3163.4,1.54661341]
[1642499177979,0.1264,3164.1,3163.4,1.54661341]
[1642499178182,0.1264,3164.1,3163.5,0.00511581]
[1642499180230,0.98925144,3163.9,3163.5,0.00511581]
[1642499180430,0.1264,3163.8,3163.5,0.00511581]
[1642499181034,5.3,3163.7,3163.4,0.22304499]
[1642499181233,0.19836315,3163.6,3163.4,4.499e-05]
[1642499181437,0.19836315,3163.6,3163.1,2.30406326]
[1642499181438,0.01274419,3163.5,3163.1,2.30406326]
[1642499181635,0.1264,3163.4,3163.1,2.30406326]
[1642499181832,0.00800004,3163.5,3163.2,0.00170527]
[1642499182034,0.1264,3163.4,3163.2,0.00170527]
[1642499182234,0.00843856,3163.4,3163.2,0.00170527]
[1642499182433,1.11736794,3163.2,3163.1,0.00227369]
[1642499183132,1.11736794,3163.2,3162.8,0.00397896]
[1642499183589,1.11736794,3163.2,3162.7,0.46276292]
[1642499183590,0.1264,3163.6,3162.7,0.41674188]
[1642499183780,0.00170527,3163.1,3162.8,3.0999692]
[1642499183981,0.00397896,3163.5,3162.8,3.5549692]
[1642499184182,0.00113685,3163.0,3162.8,3.5549692]
[1642499184382,0.00341054,3163.4,3162.9,3.34678352]
[1642499184586,1.13766627,3163.5,3162.9,3.64678352]
[1642499184783,0.00284212,3163.3,3162.9,0.3]
[1642499184983,1.13766627,3163.5,3162.9,0.3]
[1642499184984,0.00341054,3163.4,3162.9,0.3]
[1642499185184,1.13766627,3163.5,3162.8,2.3]
[1642499185185,0.00227369,3163.2,3162.8,2.3]
[1642499185384,0.00284212,3163.3,3162.8,1.3]
[1642499185582,0.00170527,3163.1,3162.8,2.3]
[1642499185783,0.00227369,3163.2,3162.8,1.3]
[1642499185988,1.0488394,3163.5,3162.9,2.95111291]
[1642499186386,0.00227369,3163.4,3162.9,2.95111291]
[1642499186786,0.00170527,3163.3,3163.0,1.0]
[1642499186986,0.00170527,3163.3,3163.1,3.23661921]
[1642499187184,0.00113684,3163.2,3163.1,3.23661921]
[1642499188125,0.00113684,3163.2,3163.1,4.45714712]
[1642499188326,0.00113684,3163.2,3163.1,5.03854712]
[1642499188530,0.00113684,3163.2,3163.1,5.10414796]
[1642499188729,0.00113684,3163.2,3163.1,25.01145452]
[1642499188928,0.1264,3164.7,3163.7,0.78997]
[1642499189229,0.00795793,3164.6,3163.9,1.10172379]
[1642499189433,0.00795793,3164.6,3164.0,2.99836611]
[1642499189628,0.00738951,3164.5,3164.0,3.12476611]
[1642499189831,0.00738951,3164.5,3164.0,3.42476611]
[1642499190030,0.00682108,3164.4,3164.0,3.42476611]
[1642499190233,0.00682108,3164.4,3164.1,0.78987]
[1642499190434,0.00682108,3164.4,3164.2,3.60190143]
[1642499190831,0.00625266,3164.3,3164.2,3.90190143]
[1642499191292,0.00625266,3164.3,3164.2,4.35690143]
[1642499191890,0.00625266,3164.3,3164.2,5.35690143]
[1642499192091,0.00625266,3164.3,3164.2,6.75487488]
[1642499192495,0.00625266,3164.3,3164.2,20.6514]
[1642499192893,0.00625266,3164.3,3164.2,2.1814]
[1642499193095,0.00625266,3164.3,3164.2,20.6514]
[1642499193296,24.25198616,3164.4,3164.3,4.85]
[1642499193495,24.25198616,3164.4,3164.3,34.22281462]
[1642499193496,20.24747997,3164.4,3164.3,34.22281462]
[1642499193895,0.1264,3166.1,3164.4,5.35]
[1642499194096,0.1263,3166.6,3165.3,1.9280482]
[1642499194295,0.00625266,3165.4,3165.3,1.24459]
[1642499194494,0.00625266,3165.4,3165.3,1.54459]
[1642499194694,0.00625266,3165.4,3165.3,4.71312316]
[1642499194922,0.00625266,3165.4,3165.3,5.71312316]
[1642499195124,1.29145052,3165.4,3165.3,5.71312316]
[1642499195324,1.29145052,3165.4,3165.3,1.755]
[1642499195527,1.29145052,3165.4,3165.3,1.455]
[1642499195723,1.59145052,3165.4,3165.3,1.0]
[1642499195928,1.71775052,3165.4,3165.0,1.0]
[1642499196125,0.1263,3165.3,3165.0,1.0]
[1642499196334,0.13198424,3165.3,3165.0,1.0]
[1642499196526,0.00511581,3165.2,3165.0,1.0]
[1642499196730,0.1263,3165.1,3165.0,1.0]
[1642499196928,0.13084739,3165.1,3164.3,4.10568368]
[1642499197129,0.13084739,3165.1,3164.4,0.1263]
[1642499197130,1.23679935,3164.9,3164.4,0.1263]
[1642499197528,0.00284212,3164.8,3164.4,0.1263]
[1642499197729,0.00284212,3164.8,3164.3,4.10568368]
[1642499197929,0.0022737,3164.7,3164.5,1.78968]
[1642499198130,0.0022737,3164.7,3164.6,0.455]
[1642499198332,1.00983667,3164.8,3164.6,0.755]
[1642499198788,1.01267879,3164.8,3164.6,0.755]
[1642499199589,1.01267879,3164.8,3164.6,2.76066]
[1642499199791,0.00284212,3164.8,3164.7,7.13030495]
[1642499200092,0.00284212,3164.8,3164.7,4.88530495]
[1642499200292,0.00284212,3164.8,3164.7,5.05900495]
[1642499200493,0.00284212,3164.8,3164.7,5.84865495]
[1642499201694,0.00284212,3164.8,3164.7,2.24465]
[1642499201896,0.00284212,3164.8,3164.7,4.34790587]
[1642499202095,0.00284212,3164.8,3164.7,4.64790587]
[1642499203745,0.00284212,3164.8,3164.7,4.34790587]
[1642499203941,0.00284212,3164.8,3164.7,5.34790587]
[1642499204145,0.00284212,3164.8,3164.7,5.47420587]
[1642499204844,0.00284212,3164.8,3164.7,4.47420587]
[1642499205044,1.28771762,3164.8,3164.7,0.455]
[1642499205442,0.00284212,3164.8,3164.7,0.455]
[1642499205643,0.00284212,3164.8,3164.7,3.53773468]
[1642499206978,0.00284212,3164.8,3164.7,4.53773468]
[1642499207183,1.10297781,3164.8,3164.7,4.53773468]
[1642499207781,1.10297781,3164.8,3164.7,0.455]
[1642499207982,0.00284212,3164.8,3164.7,0.455]
[1642499208186,0.00284212,3164.8,3164.7,5.26580507]
[1642499208882,0.00284212,3164.8,3164.7,6.56580507]
[1642499209485,0.00284212,3164.8,3164.7,1.455]
[1642499210321,0.00284212,3164.8,3164.7,4.6407749]
[1642499212323,0.00284212,3164.8,3164.7,4.9407749]
[1642499212522,0.00284212,3164.8,3164.7,6.9907749]
[1642499213589,0.00284212,3164.8,3164.7,4.9407749]
[1642499213977,0.00284212,3164.8,3164.7,4.6407749]
[1642499214178,0.00284212,3164.8,3164.7,1.455]
[1642499214979,0.00284212,3164.8,3164.7,0.455]
[1642499215279,1.25810984,3164.8,3164.7,0.455]
[1642499215478,0.00284212,3164.8,3164.7,3.205]
[1642499215678,0.00284212,3164.8,3164.7,6.07834261]
[1642499215878,0.00284212,3164.8,3164.7,7.07834261]
[1642499216478,1.26608629,3164.8,3164.7,7.07834261]
[1642499216678,1.26608629,3164.8,3164.7,4.62834261]
[1642499216878,1.26608629,3164.8,3164.7,5.41802261]
[1642499217524,0.00284212,3164.8,3164.7,5.41802261]
[1642499217924,0.00284212,3164.8,3164.7,5.14802261]
[1642499218126,0.00284212,3164.8,3164.7,1.97468]
[1642499218829,0.00284212,3164.8,3164.7,1.27468]
[1642499219229,1.1272281,3164.8,3164.7,1.27468]
[1642499219731,1.1272281,3164.8,3164.7,4.05700689]
[1642499219932,1.1272281,3164.8,3164.7,4.00746102]
[1642499220130,0.00284212,3164.8,3164.7,4.00746102]
[1642499220832,0.00284212,3164.8,3164.7,1.97468]
[1642499221881,1.50616604,3164.8,3164.7,4.03854612]
[1642499223286,0.00284212,3164.8,3164.7,4.03854612]
[1642499223490,0.00284212,3164.8,3164.7,0.97468]
[1642499223687,0.00284212,3164.8,3164.5,1.1263]
[1642499223888,0.00411338,3164.7,3164.5,1.1263]
[1642499224087,0.0022737,3164.7,3164.5,1.1263]
[1642499224287,0.00170527,3164.6,3164.5,1.1263]
[1642499224689,1.46812791,3164.6,3164.5,1.1263]
[1642499224937,0.00170527,3164.6,3164.5,0.1263]
[1642499225333,0.00170527,3164.6,3164.5,3.905]
[1642499225533,0.00170527,3164.6,3164.5,4.0314]
[1642499225836,0.00170527,3164.6,3164.5,9.53877043]
[1642499226035,3.8317,3166.2,3164.6,5.23251147]
[1642499226235,3.7053,3166.2,3165.0,5.689]
[1642499226538,0.00568424,3165.6,3165.1,0.5813]
[1642499226938,3.8428,3166.3,3165.4,1.19630416]
[1642499226939,0.00511581,3165.5,3165.4,1.19630416]
[1642499227136,0.00511581,3165.5,3165.4,21.44950416]
[1642499228136,0.00511581,3165.5,3165.4,3.10580416]
[1642499228336,0.00511581,3165.5,3165.4,6.77471956]
[1642499229180,0.00511581,3165.5,3165.4,26.53501956]
[1642499229382,0.00511581,3165.5,3165.4,30.46955228]
[1642499229782,1.59091343,3166.5,3165.5,5.35]
[1642499229982,1.59091343,3166.5,3166.4,1.23223392]
[1642499230186,1.59091343,3166.5,3166.4,3.12113392]
[1642499230584,1.59091343,3166.8,3166.4,3.12113392]
[1642499230784,1.59091343,3166.8,3166.4,4.12113392]
[1642499230982,0.00682108,3166.7,3166.4,4.91043392]
[1642499231383,0.00625266,3166.6,3166.4,4.91043392]
[1642499231783,0.00568424,3166.5,3166.4,4.91043392]
[1642499231983,0.00568424,3166.5,3166.4,3.6782]
[1642499233027,0.00568424,3166.5,3166.4,4.6782]
[1642499233330,0.91917199,3166.5,3166.4,4.6782]
[1642499234131,0.00568424,3166.5,3166.4,4.6782]
[1642499234334,0.00568424,3166.5,3166.4,7.85632732]
[1642499234532,0.00568424,3166.5,3166.4,8.15632732]
[1642499234832,0.00568424,3166.5,3166.4,7.85632732]
[1642499235033,0.91917199,3166.5,3166.4,7.85632732]
[1642499235237,0.91917199,3166.5,3166.4,7.98262732]
[1642499236283,0.00568424,3166.5,3166.4,7.85632732]
[1642499237885,0.00568424,3166.5,3166.4,4.6782]
[1642499238088,0.91917199,3166.5,3166.4,4.6782]
[1642499238284,0.91917199,3166.5,3166.4,7.71243432]
[1642499238487,0.91917199,3166.5,3166.4,4.6782]
[1642499238988,0.00568424,3166.5,3166.4,4.9782]
[1642499239188,0.00568424,3166.5,3166.4,5.00861235]
[1642499239387,0.00568424,3166.5,3166.4,4.9782]
[1642499239588,0.00568424,3166.5,3166.4,5.0106036]
[1642499239826,0.91917199,3166.5,3166.4,4.9782]
[1642499240028,0.91917199,3166.5,3166.4,5.00979142]
[1642499240232,0.91917199,3166.5,3166.4,5.1045]
[1642499240833,0.91917199,3166.5,3166.4,3.9706]
[1642499241034,0.91917199,3166.5,3166.4,2.755]
[1642499241236,0.00568424,3166.5,3166.4,4.93592284]
[1642499241442,0.00568424,3166.5,3166.4,3.93592284]
[1642499241633,0.00568424,3166.5,3166.4,3.63592284]
[1642499241832,0.00568424,3166.5,3166.4,2.63592284]
[1642499242836,0.00568424,3166.5,3166.4,2.93592284]
[1642499243242,0.91917199,3166.5,3166.2,1.0]
[1642499243438,1.04547199,3166.5,3166.2,1.3]
[1642499243682,0.00511581,3166.4,3166.2,1.3]
[1642499243985,0.00454739,3166.3,3165.9,1.755]
[1642499244381,0.00397897,3166.2,3165.9,1.755]
[1642499244782,0.00341054,3166.1,3165.9,1.755]
[1642499244981,0.00341054,3166.1,3166.0,1.0]
[1642499245182,2.91869996,3166.6,3166.0,1.0]
[1642499245183,0.91348775,3166.2,3166.0,1.0]
[1642499245787,0.91348775,3166.2,3166.0,2.0]
[1642499245983,0.91348775,3166.2,3166.1,7.47821691]
[1642499246186,0.00511581,3166.4,3166.1,9.20451691]
[1642499246383,0.91348775,3166.5,3166.2,0.1263]
[1642499246584,0.91348775,3166.5,3166.3,1.2443]
[1642499246784,0.00511581,3166.4,3166.3,1.2443]
[1642499247085,0.00511581,3166.4,3166.3,0.755]
[1642499247332,0.00511581,3166.4,3166.3,0.455]
[1642499247832,0.00511581,3166.4,3166.1,1.0]
[1642499248234,1.71721343,3167.0,3166.1,1.0]
[1642499248235,0.00454739,3166.3,3166.1,1.0]
[1642499248437,1.14288368,3166.2,3166.1,1.0]
[1642499248635,1.14686265,3166.2,3166.1,1.0]
[1642499248834,1.14686265,3166.2,3166.1,0.3]
[1642499249036,0.00397897,3166.2,3166.1,0.3]
[1642499249235,0.00397897,3166.2,3165.9,2.1813]
[1642499249436,0.00397897,3166.2,3166.0,0.1263]
[1642499249637,0.00341054,3166.1,3166.0,0.1263]
[1642499249837,0.00341054,3166.1,3166.0,1.7127]
[1642499250139,0.00852635,3166.1,3166.0,1.7127]
[1642499250338,1.47284988,3166.1,3166.0,1.7127]
[1642499250538,1.47284988,3166.1,3166.0,0.5813]
[1642499250944,1.47284988,3166.1,3166.0,2.09907189]
[1642499252591,0.00852635,3166.1,3166.0,2.09907189]
[1642499252791,0.00852635,3166.1,3166.0,3.09907189]
[1642499252992,0.00852635,3166.1,3166.0,4.09907189]
[1642499253192,0.00852635,3166.1,3166.0,7.10270103]
[1642499253795,0.00852635,3166.1,3166.0,7.60270103]
[1642499254195,0.00852635,3166.1,3166.0,4.59907189]
[1642499255628,0.00852635,3166.1,3166.0,7.6127061]
[1642499256133,0.00852635,3166.1,3166.0,4.59907189]
[1642499257236,1.32898833,3166.1,3166.0,3.59907189]
[1642499257438,1.32898833,3166.1,3166.0,1.5]
[1642499258682,1.32898833,3166.1,3166.0,3.14107378]
[1642499258883,1.32898833,3166.1,3166.0,2.14107378]
[1642499260886,1.45528833,3166.1,3166.0,2.14107378]
[1642499261086,6.80528833,3166.1,3166.0,2.14107378]
[1642499262185,1.45528833,3166.1,3166.0,2.14107378]
[1642499262829,0.13482635,3166.1,3166.0,2.14107378]
[1642499263026,0.00852635,3166.1,3166.0,2.14107378]
[1642499263229,0.00852635,3166.1,3166.0,0.5]
[1642499263430,0.95133337,3166.1,3166.0,0.5]
[1642499264733,0.95133337,3166.1,3166.0,2.1388094]
[1642499265333,2.41334329,3166.1,3166.0,2.1388094]
[1642499266480,2.36334329,3166.1,3166.0,2.1388094]
[1642499266877,2.36334329,3166.1,3166.0,2.14449363]
[1642499267879,5.26334329,3166.1,3166.0,2.14449363]
[1642499268080,5.38964329,3166.1,3166.0,2.14449363]
[1642499268477,2.48964329,3166.1,3166.0,2.14449363]
[1642499268681,2.48964329,3166.1,3166.0,0.50568423]
[1642499269088,2.36334329,3166.1,3166.0,0.50568423]
[1642499269854,0.90133337,3166.1,3166.0,0.50568423]
[1642499270834,0.90133337,3166.1,3166.0,1.50568423]
[1642499271337,1.32794853,3166.2,3166.0,1.50568423]
[1642499271739,1.32794853,3166.2,3166.1,0.00511581]
[1642499272735,0.1263,3166.6,3166.1,0.00511581]
[1642499274084,3.2347,3166.7,3166.3,0.06579793]
[1642499274286,3.2347,3166.7,3166.4,0.1263]
[1642499274484,3.2347,3166.7,3166.4,0.12971054]
[1642499274683,5.28141343,3166.8,3166.6,0.02055573]
[1642499274684,3.6905,3166.8,3166.6,0.02055573]
[1642499274885,1.59091343,3166.9,3166.5,1.00284211]
[1642499275085,1.59091343,3166.9,3166.7,0.00170527]